fUST/lending_fUST_20250831
["ID","MTS","AMOUNT","RATE_DAILY","PERIOD"]
[382464520,1756636250399,-484.91050785,0.00018204,2]
[382464521,1756636250408,-535.44,0.00018204,2]
[382464522,1756636250418,-1225.05,0.00018204,2]
[382464523,1756636250427,-1485.55,0.00018204,2]
[382464524,1756636250437,-480.0,0.00018204,2]
[382464525,1756636250447,-501.86,0.00018204,2]
[382464526,1756636250456,-480.0,0.00018204,2]
[382464527,1756636250465,-480.0,0.00018204,2]
[382464528,1756636250475,-1513.89,0.00018204,2]
[382464529,1756636250484,-480.0,0.00018204,2]
[382464530,1756636250493,-858.19,0.00018204,2]
[382464531,1756636250502,-480.0,0.00018204,2]
[382464532,1756636250512,-480.32030878,0.00018204,2]
[382464533,1756636250521,-673.45,0.00018204,2]
[382464534,1756636250531,-674.79,0.00018204,2]
[382464535,1756636250541,-279.29495814,0.00018204,2]
[382464536,1756636250552,-480.0,0.00018204,2]
[382464537,1756636250562,-480.0,0.00018204,2]
[382464538,1756636250572,-812.35,0.00018204,2]
[382464539,1756636250581,-480.0,0.00018204,2]
[382464540,1756636250592,-480.94,0.00018204,2]
[382464541,1756636250601,-1572.18,0.00018204,2]
[382464542,1756636250610,-481.09469984,0.00018204,2]
[382464543,1756636250620,-480.0,0.00018204,2]
[382464544,1756636250629,-480.0,0.00018204,2]
[382464545,1756636250639,-1845.48,0.00018204,2]
[382464546,1756636250648,-480.0,0.00018204,2]
[382464547,1756636250657,-480.0,0.00018204,2]
[382464548,1756636250666,-480.0,0.00018204,2]
[382464549,1756636250675,-480.0,0.00018204,2]
[382464550,1756636250686,-481.12814767,0.00018204,2]
[382464551,1756636250695,-312.43713229,0.00018204,2]
[382464552,1756636250707,-1033.69,0.00018204,2]
[382464553,1756636250717,-12905.7,0.00018204,2]
[382464554,1756636250727,-480.0,0.00018204,2]
[382464555,1756636250737,-1734.94,0.00018204,2]
[382464556,1756636250748,-480.0,0.00018204,2]
[382464557,1756636250757,-480.0,0.00018204,2]
[382464558,1756636250767,-502.79,0.00018204,2]
[382464559,1756636250776,-1869.57,0.00018204,2]
[382464560,1756636250786,-480.0,0.00018204,2]
[382464561,1756636250795,-480.0,0.00018204,2]
[382464562,1756636250804,-480.0,0.00018204,2]
[382464563,1756636250814,-2153.77,0.00018204,2]
[382464564,1756636250823,-2770.45,0.00018204,2]
[382464565,1756636250836,-555.84,0.00018204,2]
[382464566,1756636250846,-186.55579662,0.00018204,2]
[382464567,1756636250855,-480.0,0.00018204,2]
[382464568,1756636250864,-480.0,0.00018204,2]
[382464569,1756636250874,-480.0,0.00018204,2]
[382464570,1756636250885,-7621.64,0.00018204,2]
[382464571,1756636250895,-480.0,0.00018204,2]
[382464572,1756636250905,-480.0,0.00018204,2]
[382464573,1756636250914,-480.0,0.00018204,2]
[382464574,1756636251063,-480.0,0.00018204,2]
[382464575,1756636251072,-480.0,0.00018204,2]
[382464576,1756636251082,-3702.65,0.00018204,2]
[382464577,1756636251091,-480.0,0.00018204,2]
[382464578,1756636251100,-9809.04,0.00018204,2]
[382464579,1756636251110,-737.04,0.00018204,2]
[382464580,1756636251119,-480.0,0.00018204,2]
[382464581,1756636251128,-534.67,0.00018204,2]
[382464582,1756636251137,-480.0,0.00018204,2]
[382464583,1756636251146,-1881.33,0.00018204,2]
[382464584,1756636251155,-480.0,0.00018204,2]
[382464585,1756636251164,-480.0,0.00018204,2]
[382464586,1756636251173,-410.49221079,0.00018204,2]
[382464587,1756636251182,-514.23,0.00018204,2]
[382464588,1756636251192,-480.0,0.00018204,2]
[382464589,1756636251201,-586.76,0.00018204,2]
[382464590,1756636251211,-480.0,0.00018204,2]
[382464591,1756636251220,-1105.26,0.00018204,2]
[382464592,1756636251230,-480.0,0.00018204,2]
[382464593,1756636251239,-480.0,0.00018204,2]
[382464594,1756636251248,-789.46,0.00018204,2]
[382464595,1756636251258,-880.48,0.00018204,2]
[382464596,1756636251267,-480.0,0.00018204,2]
[382464597,1756636251277,-1243.99,0.00018204,2]
[382464598,1756636251286,-9350.55,0.00018204,2]
[382464599,1756636251295,-923.92,0.00018204,2]
[382464600,1756636251304,-2273.44,0.00018204,2]
[382464601,1756636251314,-1461.13,0.00018204,2]
[382464602,1756636251323,-480.0,0.00018204,2]
[382464603,1756636251334,-481.78518685,0.00018204,2]
[382464604,1756636251344,-510.7510522,0.00018204,2]
[382464605,1756636251354,-4682.5,0.00018204,2]
[382464606,1756636251364,-1129.79,0.00018204,2]
[382464607,1756636251374,-2385.19,0.00018204,2]
[382464608,1756636251384,-480.0,0.00018204,2]
[382464609,1756636251393,-480.0,0.00018204,2]
[382464610,1756636251402,-480.0,0.00018204,2]
[382464611,1756636251411,-538.7,0.00018204,2]
[382464612,1756636251420,-480.0,0.00018204,2]
[382464613,1756636251430,-480.0,0.00018204,2]
[382464614,1756636251440,-480.0,0.00018204,2]
[382464615,1756636251450,-4607.93,0.00018204,2]
[382464616,1756636251459,-1297.72,0.00018205,2]
[382464617,1756636251468,-480.0,0.00018205,2]
[382464618,1756636251478,-413.3736342,0.00018205,2]
[382464619,1756636251488,-480.0,0.00018205,2]
[382464620,1756636251498,-650.9,0.00018205,2]
[382464621,1756636251508,-1578.77,0.00018205,2]
[382464622,1756636251518,-481.5065541,0.00018205,2]
[382464623,1756636251529,-480.0,0.00018205,2]
[382464624,1756636251540,-1949.26,0.00018205,2]
[382464625,1756636251550,-480.0,0.00018205,2]
[382464626,1756636251561,-480.0,0.00018205,2]
[382464627,1756636251570,-480.0,0.00018205,2]
[382464628,1756636251580,-1562.44,0.00018205,2]
[382464629,1756636251588,-1693.91,0.00018205,2]
[382464630,1756636251599,-480.0,0.00018205,2]
[382464631,1756636251608,-555.57,0.00018205,2]
[382464632,1756636251618,-480.0,0.00018205,2]
[382464633,1756636251627,-638.49,0.00018205,2]
[382464634,1756636251636,-480.0,0.00018205,2]
[382464635,1756636251645,-847.23,0.00018205,2]
[382464636,1756636251654,-480.0,0.00018205,2]
[382464637,1756636251664,-480.0,0.00018205,2]
[382464638,1756636251674,-822.0,0.00018205,2]
[382464639,1756636251684,-721.32,0.00018205,2]
[382464640,1756636251693,-1464.13,0.00018205,2]
[382464641,1756636251703,-1569.43,0.00018205,2]
[382464642,1756636251713,-1642.79,0.00018205,2]
[382464643,1756636251722,-567.43,0.00018205,2]
[382464644,1756636251732,-480.0,0.00018205,2]
[382464645,1756636251742,-1455.08,0.00018205,2]
[382464646,1756636251751,-480.0,0.00018205,2]
[382464647,1756636251761,-1815.96,0.00018205,2]
[382464648,1756636251771,-1603.31,0.00018205,2]
[382464649,1756636251780,-480.0,0.00018205,2]
[382464650,1756636251791,-1973.57,0.00018205,2]
[382464651,1756636251800,-706.43,0.00018205,2]
[382464652,1756636251810,-480.0,0.00018205,2]
[382464653,1756636251819,-500.74,0.00018205,2]
[382464654,1756636251829,-480.0,0.00018205,2]
[382464655,1756636251842,-260.86270022,0.00018205,2]
[382464656,1756636251851,-504.98,0.00018205,2]
[382464657,1756636251860,-727.79,0.00018205,2]
[382464658,1756636251868,-2898.88,0.00018205,2]
[382464659,1756636251878,-1737.4,0.00018205,2]
[382464660,1756636251887,-984.47,0.00018205,2]
[382464661,1756636251896,-480.0,0.00018205,2]
[382464662,1756636251906,-930.35,0.00018205,2]
[382464663,1756636251916,-481.3470306,0.00018205,2]
[382464664,1756636251926,-740.8,0.00018205,2]
[382464665,1756636251936,-1853.64,0.00018205,2]
[382464666,1756636251945,-6863.46,0.00018205,2]
[382464667,1756636251954,-1059.09,0.00018205,2]
[382464668,1756636251964,-1473.14,0.00018205,2]
[382464669,1756636251973,-590.8,0.00018205,2]
[382464670,1756636251982,-480.0,0.00018205,2]
[382464671,1756636251991,-882.2,0.00018205,2]
[382464672,1756636252001,-2642.58,0.00018205,2]
[382464673,1756636252011,-2155.02,0.00018205,2]
[382464674,1756636252021,-1092.28,0.00018205,2]
[382464675,1756636252030,-480.0,0.00018205,2]
[382464676,1756636252039,-1733.66,0.00018205,2]
[382464677,1756636252049,-1223.71,0.00018205,2]
[382464678,1756636252059,-1688.46,0.00018205,2]
[382464679,1756636252069,-831.83,0.00018205,2]
[382464680,1756636252079,-858.4,0.00018205,2]
[382464681,1756636252088,-496.54,0.00018205,2]
[382464682,1756636252098,-480.0,0.00018205,2]
[382464683,1756636252107,-480.0,0.00018205,2]
[382464684,1756636252116,-909.2812259,0.00018232,2]
[382464685,1756636252124,-242.0,0.00018241,2]
[382464686,1756636252134,-263.13944985,0.00018246,2]
[382464687,1756636252143,-1051.5052416,0.00018246,2]
[382464688,1756636252153,-684.64468859,0.00018246,2]
[382464689,1756636252162,-162.943975,0.00018255,15]
[382464690,1756636252173,-916.14,0.00018273,2]
[382464691,1756636252184,-425.75173308,0.00018288,2]
[382464692,1756636252194,-845.95363151,0.00018288,2]
[382464693,1756636252204,-232.78794292,0.00018288,2]
[382464694,1756636252213,-160.0,0.00018288,2]
[382464695,1756636252223,-188.24652281,0.00018288,2]
[382464696,1756636252233,-160.0,0.00018288,2]
[382464697,1756636252242,-530.02580203,0.00018288,2]
[382464698,1756636252252,-417.15472785,0.00018288,2]
[382464699,1756636252261,-217.4012883,0.00018288,2]
[382464700,1756636252271,-160.0,0.00018288,2]
[382464701,1756636252281,-160.0,0.00018297,2]
[382464702,1756636252291,-160.0,0.00018297,2]
[382464703,1756636252300,-480.0,0.00018304,2]
[382464704,1756636252309,-480.0,0.00018304,2]
[382464705,1756636252319,-480.0,0.00018304,2]
[382464706,1756636252331,-480.0,0.00018304,2]
[382464707,1756636252341,-480.0,0.00018304,2]
[382464708,1756636252351,-480.0,0.00018304,2]
[382464709,1756636252361,-738.24,0.00018304,2]
[382464710,1756636252370,-674.02,0.00018304,2]
[382464711,1756636252379,-480.0,0.00018304,2]
[382464712,1756636252388,-480.0,0.00018304,2]
[382464713,1756636252398,-480.0,0.00018304,2]
[382464714,1756636252407,-480.0,0.00018304,2]
[382464715,1756636252416,-571.99,0.00018304,2]
[382464716,1756636252425,-480.0,0.00018304,2]
[382464717,1756636252436,-480.0,0.00018304,2]
[382464718,1756636252446,-480.0,0.00018304,2]
[382464719,1756636252455,-519.29,0.00018304,2]
[382464720,1756636252464,-297.60048262,0.00018304,2]
[382464721,1756636252474,-684.59,0.00018304,2]
[382464722,1756636252483,-759.74,0.00018304,2]
[382464723,1756636252493,-480.0,0.00018304,2]
[382464724,1756636252502,-480.0,0.00018304,2]
[382464725,1756636252512,-480.0,0.00018304,2]
[382464726,1756636252521,-480.0,0.00018304,2]
[382464727,1756636252530,-480.0,0.00018304,2]
[382464728,1756636252539,-480.0,0.00018304,2]
[382464729,1756636252549,-1551.5,0.00018304,2]
[382464730,1756636252558,-503.8,0.00018304,2]
[382464731,1756636252567,-1486.16,0.00018304,2]
[382464732,1756636252576,-480.0,0.00018304,2]
[382464733,1756636252586,-480.0,0.00018304,2]
[382464734,1756636252595,-480.0,0.00018304,2]
[382464735,1756636252605,-480.0,0.00018304,2]
[382464736,1756636252615,-480.0,0.00018304,2]
[382464737,1756636252623,-480.0,0.00018304,2]
[382464738,1756636252633,-836.71,0.00018304,2]
[382464739,1756636252642,-480.0,0.00018304,2]
[382464740,1756636252651,-607.24,0.00018304,2]
[382464741,1756636252660,-480.0,0.00018304,2]
[382464742,1756636252670,-481.29,0.00018304,2]
[382464743,1756636252679,-324.0913876,0.00018304,2]
[382464744,1756636252689,-480.0,0.00018304,2]
[382464745,1756636252699,-572.28,0.00018304,2]
[382464746,1756636252709,-480.0,0.00018304,2]
[382464747,1756636252718,-564.21,0.00018304,2]
[382464748,1756636252728,-586.48,0.00018304,2]
[382464749,1756636252737,-480.0,0.00018304,2]
[382464750,1756636252746,-881.51,0.00018304,2]
[382464751,1756636252755,-480.0,0.00018304,2]
[382464752,1756636252764,-1173.05,0.00018304,2]
[382464753,1756636252774,-581.67,0.00018304,2]
[382464754,1756636252783,-585.33,0.00018304,2]
[382464755,1756636252792,-480.0,0.00018304,2]
[382464756,1756636252801,-480.0,0.00018304,2]
[382464757,1756636252810,-480.0,0.00018304,2]
[382464758,1756636252819,-480.0,0.00018304,2]
[382464759,1756636252829,-675.39,0.00018304,2]
[382464760,1756636252843,-480.0,0.00018304,2]
[382464761,1756636252852,-1399.32,0.00018304,2]
[382464762,1756636252862,-480.0,0.00018304,2]
[382464763,1756636252871,-1003.54527382,0.00018304,2]
[382464764,1756636252880,-480.0,0.00018304,2]
[382464765,1756636252890,-480.0,0.00018304,2]
[382464766,1756636252899,-480.0,0.00018304,2]
[382464767,1756636252910,-480.0,0.00018304,2]
[382464768,1756636252920,-480.0,0.00018304,2]
[382464769,1756636252929,-480.0,0.00018304,2]
[382464770,1756636252939,-480.0,0.00018304,2]
[382464771,1756636252949,-480.0,0.00018304,2]
[382464772,1756636252959,-480.0,0.00018304,2]
[382464773,1756636252968,-480.0,0.00018304,2]
[382464774,1756636252977,-480.0,0.00018304,2]
[382464775,1756636252986,-480.0,0.00018304,2]
[382464776,1756636252996,-867.44,0.00018304,2]
[382464777,1756636253006,-966.64,0.00018304,2]
[382464778,1756636253015,-480.0,0.00018304,2]
[382464779,1756636253024,-480.0,0.00018304,2]
[382464780,1756636253033,-480.0,0.00018304,2]
[382464781,1756636253043,-480.0,0.00018304,2]
[382464782,1756636253052,-1076.16,0.00018304,2]
[382464783,1756636253062,-480.73,0.00018304,2]
[382464784,1756636253071,-480.0,0.00018304,2]
[382464785,1756636253079,-480.0,0.00018304,2]
[382464786,1756636253088,-480.0,0.00018304,2]
[382464787,1756636253097,-480.0,0.00018304,2]
[382464788,1756636253106,-405.51587298,0.00018304,2]
[382464789,1756636253115,-659.58,0.00018304,2]
[382464790,1756636253123,-961.35,0.00018304,2]
[382464791,1756636253132,-480.0,0.00018304,2]
[382464792,1756636253141,-723.8,0.00018304,2]
[382464793,1756636253150,-480.0,0.00018304,2]
[382464794,1756636253159,-480.0,0.00018304,2]
[382464795,1756636253168,-480.0,0.00018304,2]
[382464796,1756636253176,-480.0,0.00018304,2]
[382464797,1756636253185,-480.0,0.00018304,2]
[382464798,1756636253194,-480.0,0.00018304,2]
[382464799,1756636253203,-480.0,0.00018304,2]
[382464800,1756636253212,-1696.18,0.00018304,2]
[382464801,1756636253223,-480.0,0.00018304,2]
[382464802,1756636253232,-1079.7,0.00018304,2]
[382464803,1756636253241,-480.0,0.00018304,2]
[382464804,1756636253250,-591.58,0.00018304,2]
[382464805,1756636253259,-504.7,0.00018304,2]
[382464806,1756636253271,-481.39767338,0.00018304,2]
[382464807,1756636253281,-835.02,0.00018304,2]
[382464808,1756636253292,-480.0,0.00018304,2]
[382464809,1756636253302,-1317.7,0.00018304,2]
[382464810,1756636253311,-872.85,0.00018304,2]
[382464811,1756636253320,-480.0,0.00018304,2]
[382464812,1756636253330,-582.99,0.00018304,2]
[382464813,1756636253340,-618.42,0.00018304,2]
[382464814,1756636253350,-480.0,0.00018304,2]
[382464815,1756636253360,-480.0,0.00018304,2]
[382464816,1756636253369,-480.0,0.00018304,2]
[382464817,1756636253378,-605.84,0.00018304,2]
[382464818,1756636253389,-480.0,0.00018304,2]
[382464819,1756636253398,-598.65,0.00018304,2]
[382464820,1756636253408,-480.0,0.00018304,2]
[382464821,1756636253417,-274.46,0.00018304,2]
[382464822,1756636253427,-902.36,0.00018304,2]
[382464823,1756636253436,-1284.0,0.00018304,2]
[382464824,1756636253563,-480.0,0.00018304,2]
[382464825,1756636253586,-480.0,0.00018304,2]
[382464826,1756636253595,-480.0,0.00018304,2]
[382464827,1756636253604,-991.42,0.00018304,2]
[382464828,1756636253613,-921.53,0.00018304,2]
[382464829,1756636253622,-480.0,0.00018304,2]
[382464830,1756636253631,-565.23,0.00018304,2]
[382464831,1756636253639,-705.65,0.00018304,2]
[382464832,1756636253648,-568.55,0.00018304,2]
[382464833,1756636253657,-480.0,0.00018304,2]
[382464834,1756636253666,-480.0,0.00018304,2]
[382464835,1756636253675,-480.0,0.00018304,2]
[382464836,1756636253685,-480.0,0.00018304,2]
[382464837,1756636253694,-995.45,0.00018304,2]
[382464838,1756636253703,-480.0,0.00018304,2]
[382464839,1756636253711,-906.01,0.00018304,2]
[382464840,1756636253721,-620.5,0.00018304,2]
[382464841,1756636253730,-1167.98,0.00018304,2]
[382464842,1756636253739,-1358.67,0.00018304,2]
[382464843,1756636253748,-480.0,0.00018304,2]
[382464844,1756636253757,-480.0,0.00018304,2]
[382464845,1756636253766,-480.0,0.00018304,2]
[382464846,1756636253775,-480.0,0.00018304,2]
[382464847,1756636253783,-487.56151785,0.00018304,2]
[382464848,1756636253792,-282.83,0.00018304,2]
[382464849,1756636253801,-642.22,0.00018304,2]
[382464850,1756636253810,-480.0,0.00018304,2]
[382464851,1756636253819,-480.0,0.00018304,2]
[382464852,1756636253828,-1359.56,0.00018304,2]
[382464853,1756636253841,-656.14,0.00018304,2]
[382464854,1756636253851,-574.82,0.00018304,2]
[382464855,1756636253860,-480.0,0.00018304,2]
[382464856,1756636253869,-480.0,0.00018304,2]
[382464857,1756636253879,-645.5038682,0.00018304,2]
[382464858,1756636253887,-501.15,0.00018304,2]
[382464859,1756636253896,-480.0,0.00018304,2]
[382464860,1756636253905,-481.7167146,0.00018304,2]
[382464861,1756636253914,-715.88,0.00018304,2]
[382464862,1756636253924,-500.0,0.00018306,2]
[382464863,1756636253933,-151.0,0.00018306,2]
[382464864,1756636253942,-239.35076144,0.00018306,2]
[382464865,1756636253951,-151.0,0.00018306,2]
[382464866,1756636253960,-160.0,0.00018308,2]
[382464867,1756636253969,-160.0,0.00018308,2]
[382464868,1756636253978,-11364.23969824,0.00018308,2]
[382464869,1756636253988,-168.0,0.0001833,2]
[382464870,1756636253997,-500.0,0.00018379,2]
[382464871,1756636254006,-480.0,0.00018379,2]
[382464872,1756636254015,-480.0,0.00018379,2]
[382464873,1756636254023,-480.64942555,0.00018379,2]
[382464874,1756636254032,-480.0,0.00018379,2]
[382464875,1756636254041,-480.0,0.00018379,2]
[382464876,1756636254050,-592.33,0.00018379,2]
[382464877,1756636254060,-1099.69,0.00018379,2]
[382464878,1756636254069,-497.59,0.00018379,2]
[382464879,1756636254079,-993.08,0.00018379,2]
[382464880,1756636254088,-480.0,0.00018379,2]
[382464881,1756636254098,-2958.25,0.00018379,2]
[382464882,1756636254108,-1394.93,0.00018379,2]
[382464883,1756636254117,-480.0,0.00018379,2]
[382464884,1756636254126,-1808.67,0.00018379,2]
[382464885,1756636254135,-480.0,0.00018379,2]
[382464886,1756636254145,-884.29,0.00018379,2]
[382464887,1756636254155,-1881.37,0.00018379,2]
[382464888,1756636254165,-1480.97,0.00018379,2]
[382464889,1756636254174,-549.71,0.00018379,2]
[382464890,1756636254183,-227.27386968,0.00018379,2]
[382464891,1756636254192,-883.64,0.00018379,2]
[382464892,1756636254202,-546.52,0.00018379,2]
[382464893,1756636254212,-500.0,0.00018379,2]
[382464894,1756636254222,-1072.5,0.00018379,2]
[382464895,1756636254231,-556.86,0.00018379,2]
[382464896,1756636254241,-1360.47,0.00018379,2]
[382464897,1756636254250,-253.75978591,0.00018379,2]
[382464898,1756636254260,-1672.77,0.00018379,2]
[382464899,1756636254270,-1370.88,0.00018379,2]
[382464900,1756636254280,-736.9,0.00018379,2]
[382464901,1756636254289,-1835.08,0.00018379,2]
[382464902,1756636254298,-1153.81,0.00018379,2]
[382464903,1756636254306,-938.75,0.00018379,2]
[382464904,1756636254315,-480.0,0.00018379,2]
[382464905,1756636254324,-913.73,0.00018379,2]
[382464906,1756636254332,-480.0,0.00018379,2]
[382464907,1756636254341,-551.05,0.00018379,2]
[382464908,1756636254350,-517.14,0.00018379,2]
[382464909,1756636254359,-480.0,0.00018379,2]
[382464910,1756636254369,-1384.37,0.00018379,2]
[382464911,1756636254379,-480.0,0.00018379,2]
[382464912,1756636254388,-480.0,0.00018379,2]
[382464913,1756636254398,-5102.5,0.00018379,2]
[382464914,1756636254407,-480.0,0.00018379,2]
[382464915,1756636254416,-2136.9,0.00018379,2]
[382464916,1756636254426,-444.25476246,0.00018379,2]
[382464917,1756636254436,-766.82,0.00018379,2]
[382464918,1756636254445,-764.27,0.00018379,2]
[382464919,1756636254455,-1707.87,0.00018379,2]
[382464920,1756636254464,-1175.27,0.00018379,2]
[382464921,1756636254473,-480.0,0.00018379,2]
[382464922,1756636254483,-480.0,0.00018379,2]
[382464923,1756636254492,-480.0,0.00018379,2]
[382464924,1756636254501,-480.0,0.00018379,2]
[382464925,1756636254510,-2300.81,0.00018379,2]
[382464926,1756636254520,-480.0,0.00018379,2]
[382464927,1756636254529,-480.0,0.00018379,2]
[382464928,1756636254539,-1379.27,0.00018379,2]
[382464929,1756636254549,-1842.9,0.00018379,2]
[382464930,1756636254559,-2564.45,0.00018379,2]
[382464931,1756636254568,-480.0,0.00018379,2]
[382464932,1756636254577,-1161.02,0.00018379,2]
[382464933,1756636254587,-1706.32,0.00018379,2]
[382464934,1756636254596,-761.15,0.00018379,2]
[382464935,1756636254605,-1654.41,0.00018379,2]
[382464936,1756636254615,-533.75,0.00018379,2]
[382464937,1756636254624,-480.0,0.00018379,2]
[382464938,1756636254633,-1737.13,0.00018379,2]
[382464939,1756636254643,-480.0,0.00018379,2]
[382464940,1756636254652,-2250.42,0.00018379,2]
[382464941,1756636254661,-526.05,0.00018379,2]
[382464942,1756636254671,-480.0,0.00018379,2]
[382464943,1756636254680,-579.92,0.00018379,2]
[382464944,1756636254690,-2946.04,0.00018379,2]
[382464945,1756636254700,-480.0,0.00018379,2]
[382464946,1756636254713,-1819.29,0.00018379,2]
[382464947,1756636254722,-480.0,0.00018379,2]
[382464948,1756636254732,-1007.45,0.00018379,2]
[382464949,1756636254741,-935.01,0.00018379,2]
[382464950,1756636254750,-6791.65,0.00018379,2]
[382464951,1756636254760,-1003.65,0.00018379,2]
[382464952,1756636254769,-480.0,0.00018379,2]
[382464953,1756636254778,-844.59,0.00018379,2]
[382464954,1756636254788,-543.35,0.00018379,2]
[382464955,1756636254798,-1752.61,0.00018379,2]
[382464956,1756636254807,-1248.57,0.00018379,2]
[382464957,1756636254816,-456.81308376,0.00018379,2]
[382464958,1756636254826,-480.0,0.00018379,2]
[382464959,1756636254839,-674.87,0.00018379,2]
[382464960,1756636254849,-480.0,0.00018379,2]
[382464961,1756636254858,-1222.33,0.00018379,2]
[382464962,1756636254867,-844.52,0.00018379,2]
[382464963,1756636254878,-480.0,0.00018379,2]
[382464964,1756636254888,-480.0,0.00018379,2]
[382464965,1756636254898,-963.73,0.00018379,2]
[382464966,1756636254909,-1374.72,0.00018379,2]
[382464967,1756636254918,-480.0,0.00018379,2]
[382464968,1756636254929,-518.11,0.00018379,2]
[382464969,1756636254939,-925.96,0.00018379,2]
[382464970,1756636254949,-892.85,0.00018379,2]
[382464971,1756636254959,-1594.16,0.00018379,2]
[382464972,1756636254968,-5479.45,0.00018379,2]
[382464973,1756636254978,-1041.77,0.00018379,2]
[382464974,1756636254988,-1940.32,0.00018379,2]
[382464975,1756636254997,-2410.23,0.00018379,2]
[382464976,1756636255008,-1794.98,0.00018379,2]
[382464977,1756636255025,-3544.54,0.00018379,2]
[382464978,1756636255034,-480.0,0.00018379,2]
[382464979,1756636255043,-172.59349729,0.00018379,2]
[382464980,1756636255053,-480.0,0.00018379,2]
[382464981,1756636255063,-778.0,0.00018379,2]
[382464982,1756636255072,-4127.71,0.00018379,2]
[382464983,1756636255081,-480.0,0.00018379,2]
[382464984,1756636255090,-1035.93,0.00018379,2]
[382464985,1756636255100,-1628.77,0.00018379,2]
[382464986,1756636255109,-583.68,0.00018379,2]
[382464987,1756636255119,-4548.03,0.00018379,2]
[382464988,1756636255128,-1395.91,0.00018379,2]
[382464989,1756636255137,-554.55,0.00018379,2]
[382464990,1756636255147,-480.0,0.00018379,2]
[382464991,1756636255157,-480.0,0.00018379,2]
[382464992,1756636255166,-1377.53,0.00018379,2]
[382464993,1756636255175,-480.0,0.00018379,2]
[382464994,1756636255185,-1550.12,0.00018379,2]
[382464995,1756636255195,-601.76,0.00018379,2]
[382464996,1756636255203,-480.0,0.00018379,2]
[382464997,1756636255213,-480.0,0.00018379,2]
[382464998,1756636255223,-1959.04,0.00018379,2]
[382464999,1756636255232,-723.21,0.00018379,2]
[382465000,1756636255242,-478.23809356,0.00018379,2]
[382465001,1756636255251,-1823.98,0.00018379,2]
[382465002,1756636255260,-646.85,0.00018379,2]
[382465003,1756636255269,-480.0,0.00018379,2]
[382465004,1756636255278,-480.0,0.00018379,2]
[382465005,1756636255288,-798.71,0.00018379,2]
[382465006,1756636255297,-480.0,0.00018379,2]
[382465007,1756636255307,-324.88603306,0.00018379,2]
[382465008,1756636256477,-155.11396694,0.00018379,2]
[382465009,1756636256487,-570.35,0.00018379,2]
[382465010,1756636256496,-1795.03,0.00018379,2]
[382465011,1756636256505,-211.182,0.00018391,2]
[382465012,1756636256516,-168.0,0.00018432,2]
[382465013,1756636256524,-162.943975,0.00018433,10]
[382465014,1756636256532,-168.0,0.00018464,2]
[382465015,1756636256541,-373.13586244,0.00018473,2]
[382465016,1756636256550,-608.87160144,0.00018473,2]
[382465017,1756636256559,-500.71442312,0.00018473,2]
[382465018,1756636256568,-500.0,0.00018473,2]
[382465019,1756636256577,-500.0,0.00018473,2]